fUSD/lending_fUSD_20240317
["ID","MTS","AMOUNT","RATE_DAILY","PERIOD"]
[319386050,1710709881554,-2361.73,0.0001863,2]
[319386051,1710709881563,-1152.21,0.0001863,2]
[319386052,1710709881573,-541.83,0.0001863,2]
[319386053,1710709881582,-500.0,0.0001863,2]
[319386054,1710709881591,-2361.73,0.0001863,2]
[319386055,1710709881601,-500.0,0.0001863,2]
[319386056,1710709881610,-1152.21,0.0001863,2]
[319386057,1710709881620,-500.0,0.0001863,2]
[319386058,1710709881629,-541.83,0.0001863,2]
[319386059,1710709881639,-500.0,0.0001863,2]
[319386060,1710709881648,-2361.73,0.0001863,2]
[319386061,1710709881659,-500.0,0.0001863,2]
[319386062,1710709881668,-1152.21,0.0001863,2]
[319386063,1710709881678,-252.09182452,0.0001863,2]
[319386064,1710709881688,-541.83,0.0001863,2]
[319386065,1710709881698,-500.0,0.0001863,2]
[319386066,1710709881707,-2361.73,0.0001863,2]
[319386067,1710709881717,-500.0,0.0001863,2]
[319386068,1710709881726,-1152.21,0.0001863,2]
[319386069,1710709881735,-541.83,0.0001863,2]
[319386070,1710709881745,-500.0,0.0001863,2]
[319386071,1710709881754,-2361.73,0.0001863,2]
[319386072,1710709881764,-1152.21,0.0001863,2]
[319386073,1710709881774,-500.0,0.0001863,2]
[319386074,1710709881783,-500.0,0.0001863,2]
[319386075,1710709881793,-500.0,0.0001863,2]
[319386076,1710709881803,-541.83,0.0001863,2]
[319386077,1710709881812,-500.0,0.0001863,2]
[319386078,1710709881822,-500.0,0.0001863,2]
[319386079,1710709881831,-2361.73,0.0001863,2]
[319386080,1710709881841,-1152.21,0.0001863,2]
[319386081,1710709881850,-500.0,0.0001863,2]
[319386082,1710709881860,-500.0,0.0001863,2]
[319386083,1710709881869,-541.83,0.0001863,2]
[319386084,1710709881879,-500.0,0.0001863,2]
[319386085,1710709881889,-500.0,0.0001863,2]
[319386086,1710709881898,-500.0,0.0001863,2]
[319386087,1710709881909,-1152.21,0.0001863,2]
[319386088,1710709881918,-2361.73,0.0001863,2]
[319386089,1710709881927,-500.0,0.0001863,2]
[319386090,1710709881936,-500.0,0.0001863,2]
[319386091,1710709881946,-500.0,0.0001863,2]
[319386092,1710709881955,-500.0,0.0001863,2]
[319386093,1710709881964,-500.0,0.0001863,2]
[319386094,1710709881974,-541.83,0.0001863,2]
[319386095,1710709881985,-500.0,0.0001863,2]
[319386096,1710709881996,-1152.21,0.0001863,2]
[319386097,1710709882006,-2361.73,0.0001863,2]
[319386098,1710709882016,-500.0,0.0001863,2]
[319386099,1710709882025,-500.0,0.0001863,2]
[319386100,1710709882034,-500.0,0.0001863,2]
[319386101,1710709882045,-500.0,0.0001863,2]
[319386102,1710709882055,-500.0,0.0001863,2]
[319386103,1710709882071,-541.83,0.0001863,2]
[319386104,1710709882080,-500.0,0.0001863,2]
[319386105,1710709882090,-2361.73,0.0001863,2]
[319386106,1710709882099,-1152.21,0.0001863,2]
[319386107,1710709882108,-500.0,0.0001863,2]
[319386108,1710709882117,-500.0,0.0001863,2]
[319386109,1710709882126,-500.0,0.0001863,2]
[319386110,1710709882137,-500.0,0.0001863,2]
[319386111,1710709882146,-500.0,0.0001863,2]
[319386112,1710709882157,-541.83,0.0001863,2]
[319386113,1710709882167,-500.0,0.0001863,2]
[319386114,1710709882176,-2361.73,0.0001863,2]
[319386115,1710709882185,-649.83,0.0001863,2]
[319386116,1710709882194,-500.0,0.0001863,2]
[319386117,1710709882203,-500.0,0.0001863,2]
[319386118,1710709882213,-500.0,0.0001863,2]
[319386119,1710709882224,-500.0,0.0001863,2]
[319386120,1710709882234,-541.83,0.0001863,2]
[319386121,1710709882244,-500.0,0.0001863,2]
[319386122,1710709882255,-2361.73,0.0001863,2]
[319386123,1710709882263,-562.5,0.0001863,2]
[319386124,1710709882272,-500.0,0.0001863,2]
[319386125,1710709882282,-607.22543778,0.0001863,2]
[319386126,1710709882291,-500.0,0.0001863,2]
[319386127,1710709882300,-500.0,0.0001863,2]
[319386128,1710709882310,-1152.21,0.0001863,2]
[319386129,1710709882320,-541.83,0.0001863,2]
[319386130,1710709882331,-500.0,0.0001863,2]
[319386131,1710709882341,-592.57,0.0001863,2]
[319386132,1710709882350,-562.5,0.0001863,2]
[319386133,1710709882359,-2361.73,0.0001863,2]
[319386134,1710709882368,-500.0,0.0001863,2]
[319386135,1710709882378,-500.0,0.0001863,2]
[319386136,1710709882387,-500.0,0.0001863,2]
[319386137,1710709882396,-541.83,0.0001863,2]
[319386138,1710709882407,-1152.21,0.0001863,2]
[319386139,1710709882417,-500.0,0.0001863,2]
[319386140,1710709882426,-562.5,0.0001863,2]
[319386141,1710709882436,-2361.73,0.0001863,2]
[319386142,1710709882446,-500.0,0.0001863,2]
[319386143,1710709882456,-500.0,0.0001863,2]
[319386144,1710709882465,-500.0,0.0001863,2]
[319386145,1710709882475,-541.83,0.0001863,2]
[319386146,1710709882484,-1152.21,0.0001863,2]
[319386147,1710709882495,-500.0,0.0001863,2]
[319386148,1710709882505,-500.0,0.0001863,2]
[319386149,1710709882514,-562.5,0.0001863,2]
[319386150,1710709882526,-2361.9574668,0.0001863,2]
[319386151,1710709882536,-500.0,0.0001863,2]
[319386152,1710709882546,-541.83,0.0001863,2]
[319386153,1710709882555,-1152.21,0.0001863,2]
[319386154,1710709882565,-500.0,0.0001863,2]
[319386155,1710709882575,-500.0,0.0001863,2]
[319386156,1710709882586,-562.5,0.0001863,2]
[319386157,1710709882597,-1152.21,0.0001863,2]
[319386158,1710709882606,-500.0,0.0001863,2]
[319386159,1710709882615,-500.0,0.0001863,2]
[319386160,1710709882624,-500.0,0.0001863,2]
[319386161,1710709882633,-541.83,0.0001863,2]
[319386162,1710709882643,-500.0,0.0001863,2]
[319386163,1710709882652,-562.5,0.0001863,2]
[319386164,1710709882662,-1152.21,0.0001863,2]
[319386165,1710709882671,-500.0,0.0001863,2]
[319386166,1710709882681,-500.0,0.0001863,2]
[319386167,1710709882690,-500.0,0.0001863,2]
[319386168,1710709882699,-500.0,0.0001863,2]
[319386169,1710709882709,-562.5,0.0001863,2]
[319386170,1710709882718,-1152.21,0.0001863,2]
[319386171,1710709882728,-500.0,0.0001863,2]
[319386172,1710709882737,-628.64929205,0.0001863,2]
[319386173,1710709882747,-500.0,0.0001863,2]
[319386174,1710709882756,-500.0,0.0001863,2]
[319386175,1710709882765,-541.83,0.0001863,2]
[319386176,1710709882775,-562.5,0.0001863,2]
[319386177,1710709882784,-1152.21,0.0001863,2]
[319386178,1710709882794,-500.0,0.0001863,2]
[319386179,1710709882804,-500.0,0.0001863,2]
[319386180,1710709882998,-541.83,0.0001863,2]
[319386181,1710709883007,-562.5,0.0001863,2]
[319386182,1710709883016,-2779.91,0.0001863,2]
[319386183,1710709883026,-500.0,0.0001863,2]
[319386184,1710709883035,-1152.21,0.0001863,2]
[319386185,1710709883044,-500.0,0.0001863,2]
[319386186,1710709883054,-541.83,0.0001863,2]
[319386187,1710709883064,-500.0,0.0001863,2]
[319386188,1710709883073,-562.5,0.0001863,2]
[319386189,1710709883086,-500.0,0.0001863,2]
[319386190,1710709883095,-2779.91,0.0001863,2]
[319386191,1710709883104,-1152.21,0.0001863,2]
[319386192,1710709883113,-500.0,0.0001863,2]
[319386193,1710709883131,-500.0,0.0001863,2]
[319386194,1710709883146,-541.83,0.0001863,2]
[319386195,1710709883162,-500.0,0.0001863,2]
[319386196,1710709883172,-500.0,0.0001863,2]
[319386197,1710709883181,-562.5,0.0001863,2]
[319386198,1710709883190,-2779.91,0.0001863,2]
[319386199,1710709883199,-468.66803527,0.0001863,2]
[319386200,1710709883209,-1152.44378128,0.0001863,2]
[319386201,1710709883218,-500.0,0.0001863,2]
[319386202,1710709883227,-500.0,0.0001863,2]
[319386203,1710709883236,-562.5,0.0001863,2]
[319386204,1710709883245,-500.0,0.0001863,2]
[319386205,1710709883254,-2779.91,0.0001863,2]
[319386206,1710709883263,-542.03258697,0.0001863,2]
[319386207,1710709883272,-500.0,0.0001863,2]
[319386208,1710709883281,-500.0,0.0001863,2]
[319386209,1710709883291,-562.5,0.0001863,2]
[319386210,1710709883300,-500.0,0.0001863,2]
[319386211,1710709883310,-2779.91,0.0001863,2]
[319386212,1710709883320,-1396.26,0.0001863,2]
[319386213,1710709883329,-500.0,0.0001863,2]
[319386214,1710709883339,-500.0,0.0001863,2]
[319386215,1710709883348,-562.5,0.0001863,2]
[319386216,1710709883357,-2779.91,0.0001863,2]
[319386217,1710709883366,-1396.26,0.0001863,2]
[319386218,1710709883376,-500.0,0.0001863,2]
[319386219,1710709883385,-500.0,0.0001863,2]
[319386220,1710709883394,-562.5,0.0001863,2]
[319386221,1710709883404,-500.0,0.0001863,2]
[319386222,1710709883413,-1396.26,0.0001863,2]
[319386223,1710709883422,-2779.91,0.0001863,2]
[319386224,1710709883431,-500.0,0.0001863,2]
[319386225,1710709883441,-500.0,0.0001863,2]
[319386226,1710709883451,-500.0,0.0001863,2]
[319386227,1710709883460,-562.5,0.0001863,2]
[319386228,1710709883469,-500.0,0.0001863,2]
[319386229,1710709883478,-1396.26,0.0001863,2]
[319386230,1710709883487,-2779.91,0.0001863,2]
[319386231,1710709883496,-500.0,0.0001863,2]
[319386232,1710709883507,-500.0,0.0001863,2]
[319386233,1710709883517,-562.5,0.0001863,2]
[319386234,1710709883528,-500.0,0.0001863,2]
[319386235,1710709883538,-500.0,0.0001863,2]
[319386236,1710709883548,-2779.91,0.0001863,2]
[319386237,1710709883557,-1396.26,0.0001863,2]
[319386238,1710709883567,-500.0,0.0001863,2]
[319386239,1710709883577,-500.0,0.0001863,2]
[319386240,1710709883588,-500.0,0.0001863,2]
[319386241,1710709883597,-500.0,0.0001863,2]
[319386242,1710709883606,-2779.91,0.0001863,2]
[319386243,1710709883615,-1396.26,0.0001863,2]
[319386244,1710709883624,-182.47271465,0.0001863,2]
[319386245,1710709883633,-181.78984629,0.0001863,2]
[319386246,1710709883642,-500.0,0.0001863,2]
[319386247,1710709883651,-500.0,0.0001863,2]
[319386248,1710709883661,-1396.26,0.0001863,2]
[319386249,1710709883669,-500.0,0.0001863,2]
[319386250,1710709883678,-500.0,0.0001863,2]
[319386251,1710709883688,-1754.66,0.0001863,2]
[319386252,1710709883697,-2779.91,0.0001863,2]
[319386253,1710709883706,-500.0,0.0001863,2]
[319386254,1710709883715,-1754.66,0.0001863,2]
[319386255,1710709883724,-500.0,0.0001863,2]
[319386256,1710709883734,-2779.91,0.0001863,2]
[319386257,1710709883743,-1396.26,0.0001863,2]
[319386258,1710709883752,-500.0,0.0001863,2]
[319386259,1710709883762,-1754.66,0.0001863,2]
[319386260,1710709883771,-500.0,0.0001863,2]
[319386261,1710709883780,-2779.91,0.0001863,2]
[319386262,1710709883789,-1396.26,0.0001863,2]
[319386263,1710709883798,-500.0,0.0001863,2]
[319386264,1710709883807,-500.0,0.0001863,2]
[319386265,1710709883817,-500.0,0.0001863,2]
[319386266,1710709883826,-1754.66,0.0001863,2]
[319386267,1710709883835,-2779.91,0.0001863,2]
[319386268,1710709883845,-1375.44926504,0.0001863,2]
[319386269,1710709887951,-697.203745,0.00013799,2]
[319386270,1710710311596,456.83,0.00011533,2]
[319386289,1710710741845,433.98,0.00010984,2]
[319386310,1710711032316,-200.80824684,0.00012352,2]
[319386311,1710711032326,-423.83429116,0.00012353,2]
[319386312,1710711032418,-25.66175299,0.00012353,2]
[319386313,1710711032427,-500.0,0.00012354,2]
[319386314,1710711032437,-17.93212898,0.00012356,2]
[319386315,1710711032448,-270.27082742,0.00012356,2]
[319386316,1710711032458,-167.68,0.00012842,2]
[319386317,1710711032468,-1000.0,0.00012867,2]
[319386318,1710711032477,-0.40917258,0.00012968,2]
[319386319,1710711032502,-712.30726141,0.00012968,2]
[319386320,1710711032590,-484.21429823,0.00012968,2]
[319386520,1710711038258,-2922.82399565,0.00012968,2]
[319386522,1710711038268,-360.0,0.00013008,2]
[319386524,1710711038277,-250.0,0.00013049,2]
[319386526,1710711038286,-300.0,0.00013081,2]
[319386528,1710711038295,-2728.73,0.00013082,2]
[319386530,1710711038304,-433.98,0.00013248,2]
[319386532,1710711038313,-6580.0,0.00013255,2]
[319386534,1710711038322,-832.32,0.00013358,2]
[319386536,1710711038331,-500.0,0.00013689,2]
[319386538,1710711038339,-1684.6658,0.00013698,2]
[319386540,1710711038348,-1000.0,0.00013698,2]
[319386541,1710711038357,-254.1727,0.00013698,2]
[319386543,1710711038367,-2500.0,0.00013698,2]
[319386545,1710711038376,-330.6228,0.00013699,2]
[319386547,1710711038385,-10521.5905,0.00013699,2]
[319386549,1710711038394,-250.0,0.00013699,2]
[319386551,1710711038402,-210.0,0.00013779,2]
[319386553,1710711038412,-448.45389449,0.00013796,2]
[319386555,1710711038425,-1000.0,0.00013796,2]
[319386556,1710711038435,-283.61361451,0.00013797,2]
[319386557,1710711038444,-432.53971734,0.00013797,2]
[319386558,1710711038453,-2644.44772886,0.00013798,2]
[319386559,1710711038464,-120125.60494059,0.00013798,2]
[319386560,1710711038484,-424.26747602,0.00013798,2]
[319386561,1710711038495,-983.9989908,0.00013798,2]
[319386562,1710711038507,-1632.22125844,0.00013798,2]
[319386563,1710711038518,-335.47887284,0.00013798,2]
[319386564,1710711038530,-516.81970611,0.00013798,2]
[319386565,1710711038543,-1258.28539142,0.00013798,2]
[319386566,1710711038562,-474.18539576,0.00013798,2]
[319386567,1710711038595,-170299.14832992,0.00013798,2]
[319386568,1710711038605,-302.796255,0.00013799,2]
[319386569,1710711038614,-245000.0,0.00013799,2]
[319386570,1710711038623,-39732.9048,0.00013897,2]
[319386571,1710711038632,-100000.0,0.00013897,2]
[319386572,1710711038641,-175.98095554,0.00013899,2]
[319386573,1710711038651,-175.98095553,0.000139,2]
[319386574,1710711038660,-4133.51484464,0.000139,2]
[319386576,1710711038669,-20000.0,0.000139,2]
[319386578,1710711038678,-14815.05,0.00013908,2]
[319386580,1710711038687,-509.29629272,0.00013908,2]
[319386581,1710711038696,-155.0,0.00013909,2]
[319386583,1710711038706,-405417.15709549,0.00013909,2]
[319386584,1710711038730,-1065915.12966472,0.00013909,2]
[319386587,1710711038741,-719.45,0.00013909,2]
[319386589,1710711038752,-19028.94397895,0.00013909,2]
[319386591,1710711038764,-6942.1775366,0.00013909,2]
[319386592,1710711038792,-58895.04254299,0.00013909,2]
[319386593,1710711038804,-120838.90831149,0.00013909,2]
[319386594,1710711038814,-2214.48697966,0.00013996,2]
[319386595,1710711038823,-293.21105674,0.00013998,2]
[319386596,1710711038832,-487.35714476,0.00013999,2]
[319386597,1710711038841,-155.0,0.00013999,2]
[319386598,1710711038850,-308.18464898,0.00013999,2]
[319386599,1710711038859,-158.04643056,0.00013999,2]
[319386600,1710711038868,-540.0,0.00014389,2]
[319386601,1710711038877,-167.68,0.00014448,2]
[319386602,1710711038886,-360.0,0.00014634,2]
[319386603,1710711038895,-5000.0,0.00015,2]
[319386604,1710711038904,-1808.93661539,0.00015,2]
[319386605,1710711038914,-155.51784382,0.00015,2]
[319386606,1710711038924,-5109.51955468,0.00015,2]
[319386607,1710711038934,-1550.0,0.00015,3]
[319386608,1710711038943,-19361.4999371,0.00015,2]
[319386609,1710711038952,-4095.0,0.00015,2]
[319386610,1710711038962,-832.32,0.00015028,2]
[319386611,1710711038971,-1465.79299595,0.000152,2]
[319386612,1710711038980,-210.0,0.00015501,2]
[319386613,1710711038989,-433.98,0.00015512,2]
[319386614,1710711038998,-2500.0,0.00015716,2]
[319386615,1710711039007,-2500.0,0.00015716,2]
[319386616,1710711039016,-165.75,0.00015831,2]
[319386617,1710711039025,-232.187454,0.00016,2]
[319386618,1710711039034,-167.68,0.00016053,2]
[319386619,1710711039043,-360.0,0.0001626,2]
[319386620,1710711039053,-4000.0,0.00016438,2]
[319386621,1710711039062,-483.49,0.00016438,2]
[319386622,1710711039071,-1216.46329409,0.000165,2]
[319386623,1710711039080,-832.32,0.00016698,2]
[319386624,1710711039089,-1600.0,0.00017,3]
[319386625,1710711039098,-1250.0,0.00017199,2]
[319386626,1710711039107,-278.0,0.00017199,2]
[319386627,1710711039116,-603.0,0.00017199,2]
[319386628,1710711039125,-432.0,0.00017199,2]
[319386629,1710711039134,-1264.0,0.00017199,2]
[319386630,1710711039144,-800.0,0.00017199,2]
[319386631,1710711039152,-357.0,0.00017199,2]
[319386632,1710711039162,-150.0,0.00017199,2]
[319386633,1710711039171,-1136.0,0.00017199,2]
[319386634,1710711039180,-3000.0,0.00017199,2]
[319386635,1710711039189,-2419.0,0.00017199,2]
[319386636,1710711039198,-150.0,0.00017199,2]
[319386637,1710711039207,-1458.0,0.00017199,2]
[319386638,1710711039216,-213.0,0.00017199,2]
[319386639,1710711039225,-1623.0,0.00017199,2]
[319386640,1710711039235,-42878.0,0.00017199,2]
[319386641,1710711039245,-5668.0,0.00017199,2]
[319386642,1710711039253,-4762.0,0.00017199,2]
[319386643,1710711039262,-2560.0,0.00017199,2]
[319386644,1710711039272,-1378.0,0.00017199,2]
[319386645,1710711039282,-2428.0,0.00017199,2]
[319386646,1710711039291,-959.0,0.00017199,2]
[319386647,1710711039300,-457.0,0.00017199,2]
[319386648,1710711039309,-1227.0,0.00017199,2]
[319386649,1710711039322,-1044.0,0.00017199,2]
[319386650,1710711039331,-536.0,0.00017199,2]
[319386651,1710711039341,-210.0,0.00017224,2]
[319386652,1710711039350,-287.70140034,0.00017229,2]
[319386653,1710711039360,-155.33791431,0.00017462,2]
[319386654,1710711039369,-155.33791431,0.00017612,2]
[319386655,1710711039378,-167.68,0.00017658,2]
[319386656,1710711039388,-155.33791431,0.00017757,2]
[319386657,1710711039397,-433.98,0.00017775,2]
[319386658,1710711039406,-191.89,0.00017808,10]
[319386659,1710711039418,-360.0,0.00017886,2]
[319386660,1710711039427,-154.06087022,0.00017932,2]
[319386661,1710711039437,-364.0,0.00018109,2]
[319386662,1710711039446,-85758.67,0.00018111,5]
[319386663,1710711039457,-394.76,0.00018111,5]
[319386664,1710711039466,-364.0,0.00018137,2]
[319386665,1710711039475,-364.0,0.00018164,2]
[319386666,1710711039484,-364.0,0.00018192,2]
[319386667,1710711039495,-364.0,0.00018219,2]
[319386668,1710711039505,-364.0,0.00018246,2]
[319386669,1710711039514,-364.0,0.00018274,2]
[319386670,1710711039524,-364.0,0.00018301,2]
[319386671,1710711039533,-364.0,0.00018329,2]
[319386672,1710711039542,-364.0,0.00018356,2]
[319386673,1710711039551,-424.629798,0.00018356,2]
[319386674,1710711039560,-832.32,0.00018368,2]
[319386675,1710711039568,-364.0,0.00018383,2]
[319386676,1710711039578,-364.0,0.00018411,2]
[319386677,1710711039587,-364.0,0.00018438,2]
[319386678,1710711039598,-3000.0,0.0001844,2]
[319386679,1710711039608,-364.0,0.00018466,2]
[319386680,1710711039617,-200.0,0.00018481,2]
[319386681,1710711039626,-800.0,0.00018481,2]
[319386682,1710711039636,-200.0,0.00018481,2]
[319386683,1710711039645,-364.0,0.00018493,2]
[319386684,1710711039654,-406.10697296,0.000185,2]
[319386685,1710711039663,-18065.08732007,0.000185,2]
[319386686,1710711039673,-18065.08732007,0.000185,2]
[319386687,1710711039682,-18065.08732007,0.000185,2]
[319386688,1710711039692,-18065.08732007,0.000185,2]
[319386689,1710711039701,-18065.08732007,0.000185,2]
[319386690,1710711039711,-18065.08732007,0.000185,2]
[319386691,1710711039720,-18065.08732007,0.000185,2]
[319386692,1710711039729,-151.30766298,0.00018501,2]
[319386693,1710711039739,-471.0,0.0001852,2]
[319386694,1710711039747,-18065.08732007,0.0001853,2]
[319386695,1710711039757,-10000.0,0.0001853,2]
[319386696,1710711039767,-211.0,0.0001853,2]
[319386697,1710711039776,-1000.0,0.0001853,2]
[319386698,1710711039786,-471.0,0.00018548,2]
[319386699,1710711039796,-25115.01978333,0.00018552,2]
[319386700,1710711039805,-471.0,0.00018575,2]
[319386701,1710711039814,-151.30766298,0.00018576,2]
[319386702,1710711039825,-471.0,0.00018603,2]
[319386703,1710711039834,-287.70140034,0.00018609,2]
[319386704,1710711039843,-666.666666,0.00018627,3]
[319386705,1710711039853,-666.666666,0.00018627,3]
[319386706,1710711039862,-666.666666,0.00018627,3]
[319386707,1710711039871,-666.666666,0.00018627,3]
[319386708,1710711039880,-666.666666,0.00018627,2]
[319386709,1710711039889,-659.89918699,0.00018627,2]
[319386710,1710711039898,-666.666666,0.00018627,3]
[319386711,1710711039907,-666.666666,0.00018627,3]
[319386712,1710711039916,-666.666666,0.00018627,2]
[319386713,1710711039925,-666.666666,0.00018628,2]
[319386714,1710711039935,-666.666666,0.00018628,2]
[319386715,1710711039944,-666.666666,0.00018628,2]
[319386716,1710711039954,-666.666666,0.00018628,2]
[319386717,1710711039965,-666.666666,0.00018628,2]
[319386718,1710711039974,-666.666666,0.00018628,2]
[319386719,1710711039984,-666.666666,0.00018628,2]
[319386720,1710711039993,-666.666666,0.00018628,2]
[319386721,1710711040003,-666.666666,0.00018628,2]
[319386722,1710711040012,-666.666666,0.00018628,2]
[319386723,1710711040022,-666.666666,0.00018628,3]
[319386724,1710711040031,-666.666666,0.00018628,3]
[319386725,1710711040040,-666.666666,0.00018628,3]
[319386726,1710711040050,-666.666666,0.00018628,3]
[319386727,1710711040058,-666.666666,0.00018628,3]
[319386728,1710711040068,-666.666666,0.00018628,3]
[319386729,1710711040077,-666.666666,0.00018628,3]
[319386730,1710711040087,-666.666666,0.00018628,3]
[319386731,1710711040097,-666.666666,0.00018628,3]
[319386732,1710711040106,-666.666666,0.00018628,3]
[319386733,1710711040116,-1000.0,0.00018629,2]
[319386734,1710711040125,-1000.0,0.00018629,2]
[319386735,1710711040134,-1000.0,0.00018629,2]
[319386736,1710711040154,-1000.0,0.00018629,2]
[319386737,1710711040165,-437.07829029,0.0001863,3]
[319386738,1710711040174,-501.17758589,0.0001863,2]
[319386739,1710711040185,-500.0,0.0001863,2]
[319386740,1710711040195,-182.35539596,0.0001863,2]
[319386741,1710711040204,-500.0,0.0001863,2]
[319386743,1710711040216,-500.801966,0.0001863,2]
[319386745,1710711040225,-500.0,0.0001863,2]
[319386747,1710711040235,-500.0,0.0001863,2]
[319386749,1710711040245,-577.80448819,0.0001863,2]
[319386751,1710711040254,-500.0,0.0001863,2]
[319386753,1710711040264,-540.54650529,0.0001863,2]
[319386755,1710711040273,-166.24638253,0.0001863,2]
[319386756,1710711040283,-501.05029529,0.0001863,2]
[319386757,1710711040292,-1029.24655996,0.0001863,2]
[319386758,1710711040302,-346.14626443,0.0001863,2]
[319386759,1710711040311,-468.90720499,0.0001863,2]
[319386760,1710711040321,-500.0,0.0001863,2]
[319386761,1710711040330,-500.0,0.0001863,2]
[319386762,1710711040339,-500.0,0.0001863,2]
[319386763,1710711040349,-500.0,0.0001863,2]
[319386764,1710711040358,-500.0,0.0001863,2]
[319386765,1710711040368,-500.0,0.0001863,2]
[319386766,1710711040377,-500.0,0.0001863,2]
[319386767,1710711040387,-197.60384749,0.0001863,2]
[319386768,1710711040396,-321.69071645,0.0001863,2]
[319386769,1710711040405,-192.74378608,0.0001863,2]
[319386770,1710711040418,-564.37892992,0.0001863,2]
[319386771,1710711040431,-471.0,0.0001863,2]
[319386772,1710711040441,-500.0,0.0001863,2]
[319386773,1710711040450,-500.0,0.0001863,2]
[319386774,1710711040463,-500.0,0.0001863,2]
[319386775,1710711040473,-500.0,0.0001863,2]
[319386776,1710711040483,-502.65233776,0.0001863,2]
[319386777,1710711040493,-500.0,0.0001863,2]
[319386778,1710711040503,-500.0,0.0001863,2]
[319386779,1710711040512,-500.0,0.0001863,2]
[319386780,1710711040522,-500.0,0.0001863,2]
[319386781,1710711040530,-500.0,0.0001863,2]
[319386782,1710711040539,-500.0,0.0001863,2]
[319386783,1710711040549,-500.0,0.0001863,2]
[319386784,1710711040557,-579.30302855,0.0001863,2]
[319386785,1710711040566,-500.0,0.0001863,2]
[319386786,1710711040576,-500.0,0.0001863,2]
[319386787,1710711040585,-500.0,0.0001863,2]
[319386788,1710711040594,-500.0,0.0001863,2]
[319386789,1710711040604,-500.0,0.0001863,2]
[319386790,1710711040613,-500.0,0.0001863,2]
[319386791,1710711040622,-500.0,0.0001863,2]
[319386792,1710711040631,-512.06925129,0.0001863,2]
[319386793,1710711040640,-500.0,0.0001863,2]
[319386794,1710711040649,-476.59427918,0.0001863,2]
[319386795,1710711040659,-500.0,0.0001863,2]
[319386796,1710711040668,-904.04038139,0.0001863,5]
[319386797,1710711040677,-321.31349081,0.0001863,2]
[319386798,1710711040686,-500.0,0.0001863,2]
[319386800,1710711040695,-500.0,0.0001863,2]
[319386802,1710711040704,-508.13336179,0.0001863,2]
[319386803,1710711040714,-630.80620146,0.0001863,2]
[319386804,1710711040723,-500.0,0.0001863,2]
[319386806,1710711040732,-510.87756371,0.0001863,2]
[319386807,1710711040743,-372.8454328,0.0001863,2]
[319386808,1710711040752,-500.0,0.0001863,2]
[319386809,1710711040761,-500.0,0.0001863,2]
[319386810,1710711040770,-500.0,0.0001863,2]
[319386811,1710711040780,-397.32218845,0.0001863,2]
[319386812,1710711040790,-509.62619946,0.0001863,2]
[319386813,1710711040799,-2000.0,0.0001863,2]
[319386814,1710711040808,-200.0,0.0001863,2]
[319386815,1710711040817,-500.0,0.0001863,2]
[319386817,1710711040826,-570.10729435,0.0001863,2]
[319386818,1710711040835,-500.0,0.0001863,2]
[319386819,1710711040845,-500.0,0.0001863,2]
[319386820,1710711040854,-389.5838218,0.0001863,2]
[319386821,1710711040864,-500.0,0.0001863,2]
[319386822,1710711040874,-500.0,0.0001863,2]